fUST/lending_fUST_20250126
["ID","MTS","AMOUNT","RATE_DAILY","PERIOD"]
[350410229,1737833450013,-500.0,0.00016575,2]
[350410230,1737833450023,-6819.95,0.00016575,2]
[350410231,1737833450142,-18617.64,0.00016575,2]
[350410232,1737833450152,-893.58,0.00016575,2]
[350410233,1737833450161,-844.79,0.00016575,2]
[350410234,1737833450170,-669.95,0.00016575,2]
[350410235,1737833450180,-500.0,0.00016575,2]
[350410236,1737833450189,-500.0,0.00016575,2]
[350410237,1737833450199,-691.02,0.00016575,2]
[350410238,1737833450208,-1507.85,0.00016575,2]
[350410239,1737833450217,-500.0,0.00016575,2]
[350410240,1737833450226,-542.18,0.00016575,2]
[350410241,1737833450235,-1640.14,0.00016575,2]
[350410242,1737833450245,-1805.66,0.00016575,2]
[350410243,1737833450255,-500.0,0.00016575,2]
[350410244,1737833450264,-500.0,0.00016575,2]
[350410245,1737833450273,-500.0,0.00016575,2]
[350410246,1737833450282,-500.0,0.00016575,2]
[350410247,1737833450291,-752.96,0.00016575,2]
[350410248,1737833450300,-500.0,0.00016575,2]
[350410249,1737833450310,-551.9,0.00016575,2]
[350410250,1737833450319,-151.0,0.00016575,2]
[350410251,1737833450329,-151.0,0.00016575,2]
[350410252,1737833450339,-151.0,0.00016575,2]
[350410253,1737833450350,-151.0,0.00016575,2]
[350410254,1737833450359,-1654.51,0.00016575,2]
[350410255,1737833450369,-486.539371,0.00016575,2]
[350410256,1737833450378,-486.539371,0.00016575,2]
[350410257,1737833450387,-486.539371,0.00016575,2]
[350410258,1737833450397,-500.0,0.00016575,2]
[350410259,1737833450407,-486.539371,0.00016575,2]
[350410260,1737833450417,-631.66,0.00016575,2]
[350410261,1737833450426,-1139.59,0.00016575,2]
[350410262,1737833450435,-486.539371,0.00016575,2]
[350410263,1737833450444,-486.539371,0.00016575,2]
[350410264,1737833450454,-486.539371,0.00016575,2]
[350410265,1737833450463,-486.539371,0.00016575,2]
[350410266,1737833450472,-720.09,0.00016575,2]
[350410267,1737833450482,-500.0,0.00016575,2]
[350410268,1737833450491,-725.39,0.00016575,2]
[350410269,1737833450500,-795.99,0.00016575,2]
[350410270,1737833450509,-258.90142,0.00016575,2]
[350410271,1737833450519,-258.90142,0.00016575,2]
[350410272,1737833450527,-258.90142,0.00016575,2]
[350410273,1737833450537,-258.90142,0.00016575,2]
[350410274,1737833450547,-258.90142,0.00016575,2]
[350410275,1737833450556,-258.90142,0.00016575,2]
[350410276,1737833450566,-258.90142,0.00016575,2]
[350410277,1737833450575,-258.90142,0.00016575,2]
[350410278,1737833450584,-500.0,0.00016575,2]
[350410279,1737833450593,-500.0,0.00016575,2]
[350410280,1737833450604,-500.0,0.00016575,2]
[350410281,1737833450615,-789.33,0.00016575,2]
[350410282,1737833450624,-500.0,0.00016575,2]
[350410283,1737833450634,-500.0,0.00016575,2]
[350410284,1737833450643,-500.0,0.00016575,2]
[350410285,1737833450652,-151.0,0.00016575,2]
[350410286,1737833450661,-164.338008,0.00016575,2]
[350410287,1737833450671,-151.0,0.00016693,2]
[350410288,1737833450680,-151.0,0.00016693,2]
[350410289,1737833450689,-151.0,0.00016693,2]
[350410290,1737833450699,-166.028266,0.00016693,2]
[350410291,1737833450708,-500.0,0.00016711,2]
[350410292,1737833450717,-616.4,0.00016711,2]
[350410293,1737833450726,-500.0,0.00016711,2]
[350410294,1737833450736,-500.0,0.00016711,2]
[350410295,1737833450746,-500.0,0.00016711,2]
[350410296,1737833450755,-152.0,0.00016711,2]
[350410297,1737833450765,-4590.62740041,0.00016712,5]
[350410298,1737833450774,-516.96237701,0.00016712,5]
[350410299,1737833450783,-500.0,0.00016712,2]
[350410300,1737833450793,-500.0,0.00016712,2]
[350410301,1737833450802,-500.0,0.00016712,2]
[350410302,1737833450811,-738.1,0.00016712,2]
[350410303,1737833450820,-216.37,0.00016712,2]
[350410304,1737833450832,-500.0,0.00016712,2]
[350410305,1737833450841,-500.0,0.00016712,2]
[350410306,1737833450851,-500.0,0.00016712,2]
[350410307,1737833450860,-500.0,0.00016712,2]
[350410308,1737833450870,-500.0,0.00016712,2]
[350410309,1737833450880,-500.0,0.00016712,2]
[350410310,1737833450889,-500.0,0.00016712,2]
[350410311,1737833450899,-180.051172,0.00016712,2]
[350410312,1737833450909,-180.051172,0.00016712,2]
[350410313,1737833450918,-180.051172,0.00016712,2]
[350410314,1737833450927,-180.051172,0.00016712,2]
[350410315,1737833450938,-500.0,0.00016712,2]
[350410316,1737833450948,-500.0,0.00016712,2]
[350410317,1737833450959,-500.0,0.00016712,2]
[350410318,1737833450970,-500.0,0.00016712,2]
[350410319,1737833450980,-500.0,0.00016712,2]
[350410320,1737833450990,-500.0,0.00016712,2]
[350410321,1737833451000,-500.0,0.00016712,2]
[350410322,1737833451009,-500.0,0.00016712,2]
[350410323,1737833451020,-562.78,0.00016712,2]
[350410324,1737833451030,-878.163446,0.00016712,2]
[350410325,1737833451039,-878.163446,0.00016712,2]
[350410326,1737833451048,-878.163446,0.00016712,2]
[350410327,1737833451058,-500.0,0.00016712,2]
[350410328,1737833451067,-878.163446,0.00016712,2]
[350410329,1737833451077,-878.163446,0.00016712,2]
[350410330,1737833451086,-878.163446,0.00016712,2]
[350410331,1737833451095,-500.0,0.00016712,2]
[350410332,1737833451105,-500.0,0.00016712,2]
[350410333,1737833451114,-151.0,0.00016712,2]
[350410334,1737833451123,-151.0,0.00016712,2]
[350410335,1737833451133,-151.0,0.00016712,2]
[350410336,1737833451142,-500.0,0.00016712,2]
[350410337,1737833451152,-500.0,0.00016712,2]
[350410338,1737833451161,-500.0,0.00016712,2]
[350410339,1737833451172,-500.0,0.00016712,2]
[350410340,1737833451181,-500.0,0.00016712,2]
[350410341,1737833451190,-241.219676,0.00016712,2]
[350410342,1737833451200,-298.227168,0.00016712,2]
[350410343,1737833451209,-298.227168,0.00016712,2]
[350410344,1737833451219,-500.0,0.00016712,2]
[350410345,1737833451228,-298.227168,0.00016712,2]
[350410346,1737833451237,-298.227168,0.00016712,2]
[350410347,1737833451248,-298.227168,0.00016712,2]
[350410348,1737833451257,-298.227168,0.00016712,2]
[350410349,1737833451266,-298.227168,0.00016712,2]
[350410350,1737833451277,-298.227158,0.00016712,2]
[350410351,1737833451286,-500.0,0.00016712,2]
[350410352,1737833451295,-500.0,0.00016712,2]
[350410353,1737833451304,-12296.87,0.00016712,2]
[350410354,1737833451313,-3348.13,0.00016712,2]
[350410355,1737833451323,-4457.6,0.00016712,2]
[350410356,1737833451332,-500.0,0.00016712,2]
[350410357,1737833451341,-636.31,0.00016712,2]
[350410358,1737833451351,-1964.13,0.00016712,2]
[350410359,1737833451360,-500.0,0.00016712,2]
[350410360,1737833451370,-500.0,0.00016712,2]
[350410361,1737833451379,-500.0,0.00016712,2]
[350410362,1737833451389,-500.0,0.00016712,2]
[350410363,1737833451398,-500.0,0.00016712,2]
[350410364,1737833451407,-1328.53,0.00016712,2]
[350410365,1737833451416,-1216.7,0.00016712,2]
[350410366,1737833451426,-500.0,0.00016712,2]
[350410367,1737833451435,-500.0,0.00016712,2]
[350410368,1737833451445,-772.69,0.00016712,2]
[350410369,1737833451455,-151.0,0.00016712,2]
[350410370,1737833451464,-151.0,0.00016712,2]
[350410371,1737833451474,-151.0,0.00016712,2]
[350410372,1737833451483,-597.24,0.00016712,2]
[350410373,1737833451493,-222.636102,0.00016712,2]
[350410374,1737833451502,-500.0,0.00016712,2]
[350410375,1737833451511,-500.0,0.00016712,2]
[350410376,1737833451521,-500.0,0.00016712,2]
[350410377,1737833451530,-6819.95,0.00016712,2]
[350410378,1737833451540,-18617.64,0.00016712,2]
[350410379,1737833451550,-893.58,0.00016712,2]
[350410380,1737833451560,-669.95,0.00016712,2]
[350410381,1737833451569,-844.79,0.00016712,2]
[350410382,1737833451578,-500.0,0.00016712,2]
[350410383,1737833451597,-691.02,0.00016712,2]
[350410384,1737833451609,-1507.85,0.00016712,2]
[350410385,1737833451619,-500.0,0.00016712,2]
[350410386,1737833451629,-542.18,0.00016712,2]
[350410387,1737833451639,-1640.14,0.00016712,2]
[350410388,1737833451649,-1805.66,0.00016712,2]
[350410389,1737833451659,-500.0,0.00016712,2]
[350410390,1737833451669,-752.96,0.00016712,2]
[350410391,1737833451679,-500.0,0.00016712,2]
[350410392,1737833451688,-551.9,0.00016712,2]
[350410393,1737833451698,-151.0,0.00016712,2]
[350410394,1737833451708,-151.0,0.00016712,2]
[350410395,1737833451718,-1654.51,0.00016712,2]
[350410396,1737833451728,-500.0,0.00016712,2]
[350410397,1737833451737,-486.539371,0.00016712,2]
[350410398,1737833451747,-486.539371,0.00016712,2]
[350410399,1737833451757,-631.66,0.00016712,2]
[350410400,1737833451767,-1139.59,0.00016712,2]
[350410401,1737833451776,-486.539371,0.00016712,2]
[350410402,1737833451786,-486.539379,0.00016712,2]
[350410403,1737833451796,-720.09,0.00016712,2]
[350410404,1737833451806,-500.0,0.00016712,2]
[350410405,1737833451815,-725.39,0.00016712,2]
[350410406,1737833451824,-795.99,0.00016712,2]
[350410407,1737833451834,-258.90142,0.00016712,2]
[350410408,1737833451843,-258.90142,0.00016712,2]
[350410409,1737833451853,-258.90142,0.00016712,2]
[350410410,1737833451862,-258.901422,0.00016712,2]
[350410411,1737833451872,-500.0,0.00016712,2]
[350410412,1737833451882,-500.0,0.00016712,2]
[350410413,1737833451891,-500.0,0.00016712,2]
[350410414,1737833451901,-789.33,0.00016712,2]
[350410415,1737833451911,-500.0,0.00016712,2]
[350410416,1737833451920,-500.0,0.00016712,2]
[350410417,1737833451930,-500.0,0.00016712,2]
[350410418,1737833451942,-153.0,0.00016812,2]
[350410419,1737833451953,-153.0,0.00016812,2]
[350410420,1737833451962,-153.0,0.00016812,2]
[350410421,1737833451972,-153.0,0.00016812,2]
[350410422,1737833451982,-153.0,0.00016812,2]
[350410423,1737833451992,-153.0,0.00016812,2]
[350410424,1737833452002,-153.0,0.00016812,2]
[350410425,1737833452013,-153.0,0.00016812,2]
[350410426,1737833452022,-153.0,0.00016812,2]
[350410427,1737833452032,-153.0,0.00016812,2]
[350410428,1737833452042,-153.0,0.00016812,2]
[350410429,1737833452051,-153.0,0.00016812,2]
[350410430,1737833452061,-153.0,0.00016812,2]
[350410431,1737833452071,-153.0,0.00016812,2]
[350410432,1737833452081,-153.0,0.00016812,2]
[350410433,1737833452091,-153.0,0.00016812,2]
[350410434,1737833452102,-153.0,0.00016812,2]
[350410435,1737833452112,-153.0,0.00016812,2]
[350410436,1737833452122,-241.01,0.00016812,2]
[350410437,1737833452132,-150.0,0.00016826,2]
[350410438,1737833452141,-151.0,0.00016848,2]
[350410439,1737833452151,-500.0,0.00016848,2]
[350410440,1737833452161,-549.71208941,0.00016848,2]
[350410441,1737833452171,-151.0,0.00016848,2]
[350410442,1737833452180,-500.0,0.00016849,2]
[350410443,1737833452190,-500.0,0.00016849,2]
[350410444,1737833452199,-500.0,0.00016849,2]
[350410445,1737833452210,-738.1,0.00016849,2]
[350410446,1737833452219,-500.0,0.00016849,2]
[350410447,1737833452228,-500.0,0.00016849,2]
[350410448,1737833452238,-500.0,0.00016849,2]
[350410449,1737833452248,-500.0,0.00016849,2]
[350410450,1737833452257,-500.0,0.00016849,2]
[350410451,1737833452267,-500.0,0.00016849,2]
[350410452,1737833452277,-180.051172,0.00016849,2]
[350410453,1737833452286,-180.051172,0.00016849,2]
[350410454,1737833452295,-180.051172,0.00016849,2]
[350410455,1737833452305,-180.051172,0.00016849,2]
[350410456,1737833452314,-180.051172,0.00016849,2]
[350410457,1737833452324,-180.051166,0.00016849,2]
[350410458,1737833452333,-500.0,0.00016849,2]
[350410459,1737833452343,-500.0,0.00016849,2]
[350410460,1737833452352,-500.0,0.00016849,2]
[350410461,1737833452362,-500.0,0.00016849,2]
[350410462,1737833452372,-500.0,0.00016849,2]
[350410463,1737833452381,-570.800002,0.00016849,2]
[350410464,1737833452391,-500.0,0.00016849,2]
[350410465,1737833452402,-500.0,0.00016849,2]
[350410466,1737833452412,-562.78,0.00016849,2]
[350410467,1737833452421,-878.163446,0.00016849,2]
[350410468,1737833452435,-878.163446,0.00016849,2]
[350410469,1737833452445,-500.0,0.00016849,2]
[350410470,1737833452454,-878.163446,0.00016849,2]
[350410471,1737833452464,-878.16345116,0.00016849,2]
[350410472,1737833452474,-500.0,0.00016849,2]
[350410473,1737833452483,-500.0,0.00016849,2]
[350410474,1737833452493,-151.0,0.00016849,2]
[350410475,1737833452502,-500.0,0.00016849,2]
[350410476,1737833452511,-500.0,0.00016849,2]
[350410477,1737833452581,-500.0,0.00016849,2]
[350410478,1737833452591,-500.0,0.00016849,2]
[350410479,1737833452601,-500.0,0.00016849,2]
[350410480,1737833452610,-500.0,0.00016849,2]
[350410481,1737833452619,-500.0,0.00016849,2]
[350410482,1737833452628,-12296.87,0.00016849,2]
[350410483,1737833452637,-3348.13,0.00016849,2]
[350410484,1737833452646,-4457.6,0.00016849,2]
[350410485,1737833452656,-500.0,0.00016849,2]
[350410486,1737833452665,-636.31,0.00016849,2]
[350410487,1737833452674,-1964.13,0.00016849,2]
[350410488,1737833452683,-500.0,0.00016849,2]
[350410489,1737833452692,-500.0,0.00016849,2]
[350410490,1737833452702,-500.0,0.00016849,2]
[350410491,1737833452711,-500.0,0.00016849,2]
[350410492,1737833452719,-500.0,0.00016849,2]
[350410493,1737833452728,-1328.53,0.00016849,2]
[350410494,1737833452738,-1216.7,0.00016849,2]
[350410495,1737833452747,-500.0,0.00016849,2]
[350410496,1737833452756,-500.0,0.00016849,2]
[350410497,1737833452765,-772.69,0.00016849,2]
[350410498,1737833452774,-597.24,0.00016849,2]
[350410499,1737833452784,-500.0,0.00016849,2]
[350410500,1737833452794,-500.0,0.00016849,2]
[350410501,1737833452803,-500.0,0.00016849,2]
[350410502,1737833452812,-6819.95,0.00016849,2]
[350410503,1737833452821,-18617.64,0.00016849,2]
[350410504,1737833452830,-893.58,0.00016849,2]
[350410505,1737833452839,-669.95,0.00016849,2]
[350410506,1737833452849,-844.79,0.00016849,2]
[350410507,1737833452858,-500.0,0.00016849,2]
[350410508,1737833452868,-691.02,0.00016849,2]
[350410509,1737833452878,-1507.85,0.00016849,2]
[350410510,1737833452887,-500.0,0.00016849,2]
[350410511,1737833452899,-542.18,0.00016849,2]
[350410512,1737833452908,-1640.14,0.00016849,2]
[350410513,1737833452918,-1805.66,0.00016849,2]
[350410514,1737833452928,-500.0,0.00016849,2]
[350410515,1737833452941,-752.96,0.00016849,2]
[350410516,1737833452951,-500.0,0.00016849,2]
[350410517,1737833452960,-551.9,0.00016849,2]
[350410518,1737833452969,-1654.51,0.00016849,2]
[350410519,1737833452981,-500.0,0.00016849,2]
[350410520,1737833452991,-631.66,0.00016849,2]
[350410521,1737833453001,-1139.59,0.00016849,2]
[350410522,1737833453011,-720.09,0.00016849,2]
[350410523,1737833453021,-500.0,0.00016849,2]
[350410524,1737833453030,-725.39,0.00016849,2]
[350410525,1737833453041,-795.99,0.00016849,2]
[350410526,1737833453051,-500.0,0.00016849,2]
[350410527,1737833453061,-500.0,0.00016849,2]
[350410528,1737833453071,-500.0,0.00016849,2]
[350410529,1737833453080,-789.33,0.00016849,2]
[350410530,1737833453090,-500.0,0.00016849,2]
[350410531,1737833453100,-500.0,0.00016849,2]
[350410532,1737833453109,-403.46389502,0.00016849,2]
[350410533,1737833453119,-500.0,0.00016986,2]
[350410534,1737833453130,-500.0,0.00016986,2]
[350410535,1737833453140,-500.0,0.00016986,2]
[350410536,1737833453149,-738.1,0.00016986,2]
[350410537,1737833453160,-500.0,0.00016986,2]
[350410538,1737833453169,-500.0,0.00016986,2]
[350410539,1737833453180,-500.0,0.00016986,2]
[350410540,1737833453189,-500.0,0.00016986,2]
[350410541,1737833453199,-500.0,0.00016986,2]
[350410542,1737833453209,-500.0,0.00016986,2]
[350410543,1737833453219,-500.0,0.00016986,2]
[350410544,1737833453229,-500.0,0.00016986,2]
[350410545,1737833453238,-500.0,0.00016986,2]
[350410546,1737833453247,-500.0,0.00016986,2]
[350410547,1737833453257,-500.0,0.00016986,2]
[350410548,1737833453267,-500.0,0.00016986,2]
[350410549,1737833453277,-500.0,0.00016986,2]
[350410550,1737833453287,-562.78,0.00016986,2]
[350410551,1737833453297,-500.0,0.00016986,2]
[350410552,1737833453307,-500.0,0.00016986,2]
[350410553,1737833453316,-500.0,0.00016986,2]
[350410554,1737833453326,-500.0,0.00016986,2]
[350410555,1737833453335,-500.0,0.00016986,2]
[350410556,1737833453345,-500.0,0.00016986,2]
[350410557,1737833453356,-500.0,0.00016986,2]
[350410558,1737833453366,-500.0,0.00016986,2]
[350410559,1737833453375,-500.0,0.00016986,2]
[350410560,1737833453385,-500.0,0.00016986,2]
[350410561,1737833453394,-12296.87,0.00016986,2]
[350410562,1737833453406,-3348.13,0.00016986,2]
[350410563,1737833453416,-4457.6,0.00016986,2]
[350410564,1737833453425,-500.0,0.00016986,2]
[350410565,1737833453435,-636.31,0.00016986,2]
[350410566,1737833453444,-1964.13,0.00016986,2]
[350410567,1737833453453,-500.0,0.00016986,2]
[350410568,1737833453462,-500.0,0.00016986,2]
[350410569,1737833453471,-500.0,0.00016986,2]
[350410570,1737833453481,-500.0,0.00016986,2]
[350410571,1737833453491,-500.0,0.00016986,2]
[350410572,1737833453501,-1328.53,0.00016986,2]
[350410573,1737833453510,-1216.7,0.00016986,2]
[350410574,1737833453520,-500.0,0.00016986,2]
[350410575,1737833453529,-500.0,0.00016986,2]
[350410576,1737833453541,-772.69,0.00016986,2]
[350410577,1737833453554,-597.24,0.00016986,2]
[350410578,1737833453563,-500.0,0.00016986,2]
[350410579,1737833453573,-500.0,0.00016986,2]
[350410580,1737833453583,-500.0,0.00016986,2]
[350410581,1737833453593,-6819.95,0.00016986,2]
[350410582,1737833453602,-18617.64,0.00016986,2]
[350410583,1737833453612,-893.58,0.00016986,2]
[350410584,1737833453621,-669.95,0.00016986,2]
[350410585,1737833453631,-844.79,0.00016986,2]
[350410586,1737833453641,-500.0,0.00016986,2]
[350410587,1737833453651,-691.02,0.00016986,2]
[350410588,1737833453662,-1507.85,0.00016986,2]
[350410589,1737833453672,-500.0,0.00016986,2]
[350410590,1737833453682,-542.18,0.00016986,2]
[350410591,1737833453693,-1640.14,0.00016986,2]
[350410592,1737833453703,-1805.66,0.00016986,2]
[350410593,1737833453713,-500.0,0.00016986,2]
[350410594,1737833453722,-752.96,0.00016986,2]
[350410595,1737833453733,-500.0,0.00016986,2]
[350410596,1737833453743,-551.9,0.00016986,2]
[350410597,1737833453752,-1654.51,0.00016986,2]
[350410598,1737833453762,-500.0,0.00016986,2]
[350410599,1737833453771,-631.66,0.00016986,2]
[350410600,1737833453781,-1139.59,0.00016986,2]
[350410601,1737833453791,-720.09,0.00016986,2]
[350410602,1737833453800,-500.0,0.00016986,2]
[350410603,1737833453810,-725.39,0.00016986,2]
[350410604,1737833453819,-795.99,0.00016986,2]
[350410605,1737833453829,-500.0,0.00016986,2]
[350410606,1737833453839,-500.0,0.00016986,2]
[350410607,1737833453850,-789.33,0.00016986,2]
[350410608,1737833453865,-500.0,0.00016986,2]
[350410609,1737833453874,-500.0,0.00016986,2]
[350410610,1737833453883,-504.55300173,0.00017021,2]
[350410611,1737833453893,-1000.0,0.00017021,2]
[350410612,1737833453902,-420.0,0.0001707,2]
[350410613,1737833453913,-395.0,0.00017071,2]
[350410614,1737833453923,-405.94385183,0.00017111,2]
[350410615,1737833453932,-500.0,0.00017123,2]
[350410616,1737833453946,-500.0,0.00017123,2]
[350410617,1737833453957,-738.1,0.00017123,2]
[350410618,1737833453967,-500.0,0.00017123,2]
[350410619,1737833453976,-500.0,0.00017123,2]
[350410620,1737833453987,-500.0,0.00017123,2]
[350410621,1737833453996,-500.0,0.00017123,2]
[350410622,1737833454006,-500.0,0.00017123,2]
[350410623,1737833454016,-500.0,0.00017123,2]
[350410624,1737833454027,-500.0,0.00017123,2]
[350410625,1737833454037,-500.0,0.00017123,2]
[350410626,1737833454046,-500.0,0.00017123,2]
[350410627,1737833454056,-500.0,0.00017123,2]
[350410628,1737833454065,-500.0,0.00017123,2]
[350410629,1737833454075,-500.0,0.00017123,2]
[350410630,1737833454084,-500.0,0.00017123,2]
[350410631,1737833454094,-562.78,0.00017123,2]
[350410632,1737833454104,-500.0,0.00017123,2]
[350410633,1737833454113,-500.0,0.00017123,2]
[350410634,1737833454123,-500.0,0.00017123,2]
[350410635,1737833454133,-500.0,0.00017123,2]
[350410636,1737833454142,-500.0,0.00017123,2]
[350410637,1737833454153,-500.0,0.00017123,2]
[350410638,1737833454170,-500.0,0.00017123,2]
[350410639,1737833454180,-500.0,0.00017123,2]
[350410640,1737833454190,-500.0,0.00017123,2]
[350410641,1737833454199,-240.15237797,0.00017123,2]
[350410642,1737833454209,-12296.87,0.00017123,2]
[350410643,1737833454218,-3348.13,0.00017123,2]
[350410644,1737833454228,-4457.6,0.00017123,2]
[350410645,1737833454237,-500.0,0.00017123,2]
[350410646,1737833454246,-636.31,0.00017123,2]
[350410647,1737833454256,-1964.13,0.00017123,2]
[350410648,1737833454265,-500.0,0.00017123,2]
[350410649,1737833454275,-500.0,0.00017123,2]
[350410650,1737833454285,-500.0,0.00017123,2]
[350410651,1737833454294,-608.6589842,0.00017123,2]
[350410652,1737833454304,-411.020593,0.00017123,2]
[350410653,1737833454314,-1328.53,0.00017123,2]
[350410654,1737833454323,-1216.7,0.00017123,2]
[350410655,1737833454333,-500.0,0.00017123,2]
[350410656,1737833454342,-500.0,0.00017123,2]
[350410657,1737833454351,-772.69,0.00017123,2]
[350410658,1737833454361,-597.24,0.00017123,2]
[350410659,1737833454370,-500.0,0.00017123,2]
[350410660,1737833454379,-500.0,0.00017123,2]
[350410661,1737833454390,-500.0,0.00017123,2]
[350410662,1737833454399,-6819.95,0.00017123,2]
[350410663,1737833454409,-18617.64,0.00017123,2]
[350410664,1737833454418,-893.58,0.00017123,2]
[350410665,1737833454427,-669.95,0.00017123,2]
[350410666,1737833454436,-844.79,0.00017123,2]
[350410667,1737833454446,-500.0,0.00017123,2]
[350410668,1737833454455,-691.02,0.00017123,2]
[350410669,1737833454465,-1507.85,0.00017123,2]
[350410670,1737833454474,-500.0,0.00017123,2]
[350410671,1737833454484,-542.18,0.00017123,2]
[350410672,1737833454494,-1640.14,0.00017123,2]
[350410673,1737833454503,-1805.66,0.00017123,2]
[350410674,1737833454513,-500.0,0.00017123,2]
[350410675,1737833454522,-752.96,0.00017123,2]
[350410676,1737833454532,-435.28298859,0.00017123,2]
[350410677,1737833454542,-551.9,0.00017123,2]
[350410678,1737833454551,-1654.51,0.00017123,2]
[350410679,1737833454560,-500.0,0.00017123,2]
[350410680,1737833454570,-631.66,0.00017123,2]
[350410681,1737833454579,-1139.59,0.00017123,2]
[350410682,1737833454590,-720.09,0.00017123,2]
[350410683,1737833454599,-500.0,0.00017123,2]
[350410684,1737833454608,-725.39,0.00017123,2]
[350410685,1737833454618,-795.99,0.00017123,2]
[350410686,1737833454628,-500.0,0.00017123,2]
[350410687,1737833454640,-500.0,0.00017123,2]
[350410688,1737833454650,-789.33,0.00017123,2]
[350410689,1737833454660,-500.0,0.00017123,2]
[350410690,1737833454670,-500.0,0.00017123,2]
[350410691,1737833454679,-500.0,0.00017124,2]
[350410692,1737833454689,-500.0,0.00017124,2]
[350410693,1737833454699,-150.0,0.00017135,2]
[350410694,1737833454709,-150.0,0.00017135,2]
[350410695,1737833454719,-150.0,0.00017135,2]
[350410696,1737833454728,-269.96822482,0.00017214,2]
[350410697,1737833454738,-500.0,0.00017214,2]
[350410698,1737833454747,-500.0,0.0001726,2]
[350410699,1737833454757,-500.0,0.0001726,2]
[350410700,1737833454766,-738.1,0.0001726,2]
[350410701,1737833454776,-500.0,0.0001726,2]
[350410702,1737833454785,-500.0,0.0001726,2]
[350410703,1737833454795,-500.0,0.0001726,2]
[350410704,1737833454805,-500.0,0.0001726,2]
[350410705,1737833454814,-500.0,0.0001726,2]
[350410706,1737833454825,-500.0,0.0001726,2]
[350410707,1737833454834,-500.0,0.0001726,2]
[350410708,1737833454843,-500.0,0.0001726,2]
[350410709,1737833454854,-500.0,0.0001726,2]
[350410710,1737833454864,-500.0,0.0001726,2]
[350410711,1737833454873,-500.0,0.0001726,2]
[350410712,1737833454884,-500.0,0.0001726,2]
[350410713,1737833454895,-562.78,0.0001726,2]
[350410714,1737833454906,-500.0,0.0001726,2]
[350410715,1737833454916,-500.0,0.0001726,2]
[350410716,1737833454925,-500.0,0.0001726,2]
[350410717,1737833454937,-500.0,0.0001726,2]
[350410718,1737833454949,-500.0,0.0001726,2]
[350410719,1737833454958,-500.0,0.0001726,2]
[350410720,1737833454968,-500.0,0.0001726,2]
[350410721,1737833454979,-500.0,0.0001726,2]
[350410722,1737833454989,-500.0,0.0001726,2]
[350410723,1737833454999,-12296.87,0.0001726,2]
[350410724,1737833455008,-3348.13,0.0001726,2]
[350410725,1737833455020,-4457.6,0.0001726,2]
[350410726,1737833455031,-500.0,0.0001726,2]
[350410727,1737833455040,-636.31,0.0001726,2]
[350410728,1737833455050,-1964.13,0.0001726,2]